lending/lending_fUSD_20240908
["ID","MTS","AMOUNT","RATE_DAILY","PERIOD"]
[337530997,1725759040391,-151.0,0.0001479,2]
[337530998,1725759040400,-151.0,0.0001479,2]
[337530999,1725759040409,-600.0,0.0001479,2]
[337531000,1725759040418,-600.0,0.0001479,2]
[337531001,1725759040427,-151.0,0.0001479,2]
[337531002,1725759040436,-339.44,0.00014794,2]
[337531003,1725759040445,-315.607749,0.00014795,2]
[337531004,1725759040454,-150.0,0.00014799,2]
[337531005,1725759040463,-756.64813238,0.000148,2]
[337531006,1725759040472,-584.20458512,0.000148,2]
[337531007,1725759040482,-16190.46267022,0.000148,2]
[337531008,1725759040491,-152.644271,0.000148,2]
[337531009,1725759040500,-251.692884,0.000148,2]
[337531010,1725759040509,-257.778102,0.000148,2]
[337531011,1725759040518,-151.0,0.000148,2]
[337531013,1725759040527,-151.0,0.000148,2]
[337531015,1725759040536,-151.0,0.000148,2]
[337531017,1725759040545,-151.0,0.000148,2]
[337531018,1725759040554,-151.0,0.000148,2]
[337531019,1725759040564,-151.0,0.000148,2]
[337531020,1725759040573,-151.0,0.000148,2]
[337531021,1725759040582,-151.0,0.000148,2]
[337531022,1725759040591,-151.0,0.000148,2]
[337531023,1725759040600,-765.53754194,0.000148,2]
[337531025,1725759040609,-1073.0,0.000148,5]
[337531026,1725759040618,-235.10165509,0.00014835,5]
[337531027,1725759040627,-260.22,0.00014853,2]
[337531028,1725759040637,-176.45092173,0.0001489,2]
[337531029,1725759040646,-7781.15617906,0.0001489,3]
[337531030,1725759040655,-176.45092173,0.00014895,2]
[337531031,1725759040664,-151.0,0.000149,2]
[337531032,1725759040673,-151.235383,0.000149,2]
[337531033,1725759040682,-151.235383,0.000149,2]
[337531034,1725759040691,-648.547356,0.000149,2]
[337531035,1725759040700,-648.547356,0.000149,2]
[337531036,1725759040710,-176.45092173,0.000149,2]
[337531037,1725759040719,-371.94389957,0.000149,2]
[337531038,1725759040728,-364.30724192,0.000149,2]
[337531039,1725759040738,-998.0554745,0.000149,2]
[337531040,1725759040747,-335.75,0.000149,2]
[337531041,1725759040756,-374.68,0.00014934,2]
[337531042,1725759040769,-150.0,0.00014951,5]
[337531043,1725759040778,-150.0,0.00014951,5]
[337531044,1725759040787,-7781.15617906,0.0001496,3]
[337531045,1725759040796,-3890.57808953,0.0001496,3]
[337531046,1725759040807,-156.08,0.0001496,2]
[337531047,1725759040816,-266.669636,0.0001497,2]
[337531048,1725759040825,-266.669636,0.0001497,2]
[337531049,1725759040834,-237.848266,0.0001497,2]
[337531050,1725759040845,-151.0,0.0001497,2]
[337531051,1725759040854,-151.0,0.0001497,2]
[337531052,1725759040863,-151.0,0.0001497,2]
[337531053,1725759040873,-220.541715,0.0001497,2]
[337531054,1725759040882,-220.541715,0.0001497,2]
[337531055,1725759040892,-338.204902,0.0001497,2]
[337531056,1725759040901,-338.204902,0.0001497,2]
[337531057,1725759040910,-1153.324745,0.0001497,2]
[337531058,1725759040919,-3890.57808953,0.0001497,3]
[337531059,1725759040929,-151.0,0.0001497,2]
[337531060,1725759040938,-297.038637,0.0001497,2]
[337531061,1725759040947,-151.0,0.0001497,2]
[337531062,1725759040956,-600.0,0.0001497,2]
[337531063,1725759040965,-600.0,0.0001497,2]
[337531064,1725759040974,-151.0,0.0001497,2]
[337531065,1725759040983,-19452.8904476,0.0001497,3]
[337531066,1725759040992,-502.06762645,0.00014973,2]
[337531067,1725759041001,-3890.57808953,0.00014979,3]
[337531068,1725759041010,-3890.57808953,0.0001498,3]
[337531069,1725759041019,-151.0,0.0001498,2]
[337531070,1725759041028,-240.241279,0.0001498,2]
[337531071,1725759041037,-240.241279,0.0001498,2]
[337531072,1725759041047,-151.0,0.0001498,2]
[337531073,1725759041055,-151.235383,0.0001498,2]
[337531074,1725759041065,-151.235383,0.0001498,2]
[337531075,1725759041074,-648.547356,0.0001498,2]
[337531076,1725759041083,-648.547356,0.0001498,2]
[337531077,1725759041092,-151.0,0.0001498,2]
[337531078,1725759041102,-151.0,0.0001498,2]
[337531079,1725759041111,-600.0,0.0001498,2]
[337531080,1725759041120,-600.0,0.0001498,2]
[337531081,1725759041129,-259.953748,0.0001498,2]
[337531082,1725759041139,-58358.6713429,0.0001498,3]
[337531083,1725759041147,-5500.741916,0.0001498,3]
[337531084,1725759041157,-274.40767588,0.00014986,2]
[337531085,1725759041166,-500.0,0.00014989,2]
[337531086,1725759041175,-500.0,0.00014989,2]
[337531087,1725759041184,-500.0,0.00014989,2]
[337531088,1725759041193,-564.66690853,0.00014989,2]
[337531089,1725759041203,-500.0,0.00014989,2]
[337531090,1725759041212,-4813.1491765,0.0001499,3]
[337531091,1725759041221,-151.0,0.0001499,2]
[337531092,1725759041230,-151.0,0.0001499,2]
[337531093,1725759041239,-151.0,0.0001499,2]
[337531094,1725759041248,-151.0,0.0001499,2]
[337531095,1725759041257,-151.0,0.0001499,2]
[337531096,1725759041267,-151.0,0.0001499,2]
[337531097,1725759041276,-151.0,0.0001499,2]
[337531098,1725759041285,-151.0,0.0001499,2]
[337531099,1725759041294,-240.241279,0.0001499,2]
[337531100,1725759041303,-240.241279,0.0001499,2]
[337531101,1725759041312,-240.241279,0.0001499,2]
[337531102,1725759041322,-240.241279,0.0001499,2]
[337531103,1725759041331,-240.241279,0.0001499,2]
[337531104,1725759041340,-240.241279,0.0001499,2]
[337531105,1725759041349,-240.241279,0.0001499,2]
[337531106,1725759041358,-240.241279,0.0001499,2]
[337531107,1725759041367,-151.0,0.0001499,2]
[337531108,1725759041376,-151.0,0.0001499,2]
[337531109,1725759041385,-151.0,0.0001499,2]
[337531110,1725759041394,-151.0,0.0001499,2]
[337531111,1725759041405,-151.0,0.0001499,2]
[337531112,1725759041415,-151.0,0.0001499,2]
[337531113,1725759041425,-239.667414,0.0001499,2]
[337531114,1725759041436,-151.0,0.0001499,2]
[337531115,1725759041446,-161.49017,0.0001499,2]
[337531116,1725759041456,-266.669636,0.0001499,2]
[337531117,1725759041465,-266.669636,0.0001499,2]
[337531118,1725759041475,-266.669636,0.0001499,2]
[337531119,1725759041486,-266.669636,0.0001499,2]
[337531120,1725759041496,-266.669636,0.0001499,2]
[337531121,1725759041505,-266.669636,0.0001499,2]
[337531122,1725759041516,-266.669636,0.0001499,2]
[337531123,1725759041526,-266.669636,0.0001499,2]
[337531124,1725759041537,-151.235383,0.0001499,2]
[337531125,1725759041547,-151.235383,0.0001499,2]
[337531126,1725759041556,-151.235383,0.0001499,2]
[337531127,1725759041565,-151.235383,0.0001499,2]
[337531128,1725759041575,-151.235383,0.0001499,2]
[337531129,1725759041584,-151.235383,0.0001499,2]
[337531130,1725759041593,-151.235383,0.0001499,2]
[337531131,1725759041603,-151.235383,0.0001499,2]
[337531132,1725759041612,-648.547356,0.0001499,2]
[337531133,1725759041621,-648.547356,0.0001499,2]
[337531134,1725759041630,-648.547356,0.0001499,2]
[337531135,1725759041639,-648.547356,0.0001499,2]
[337531136,1725759041648,-648.547356,0.0001499,2]
[337531137,1725759041657,-648.547356,0.0001499,2]
[337531138,1725759041666,-648.547356,0.0001499,2]
[337531139,1725759041675,-648.547356,0.0001499,2]
[337531140,1725759041685,-151.0,0.0001499,2]
[337531141,1725759041694,-151.0,0.0001499,2]
[337531142,1725759041703,-151.0,0.0001499,2]
[337531143,1725759041713,-151.0,0.0001499,2]
[337531144,1725759041722,-151.0,0.0001499,2]
[337531145,1725759041731,-151.0,0.0001499,2]
[337531146,1725759041740,-151.0,0.0001499,2]
[337531147,1725759041750,-151.0,0.0001499,2]
[337531148,1725759041759,-151.0,0.0001499,2]
[337531149,1725759041771,-274.508193,0.0001499,2]
[337531150,1725759041781,-220.541715,0.0001499,2]
[337531151,1725759041790,-220.541715,0.0001499,2]
[337531152,1725759041799,-220.541715,0.0001499,2]
[337531153,1725759041808,-220.541715,0.0001499,2]
[337531154,1725759041819,-220.541715,0.0001499,2]
[337531155,1725759041829,-220.541715,0.0001499,2]
[337531156,1725759041840,-220.541715,0.0001499,2]
[337531157,1725759041852,-338.204902,0.0001499,2]
[337531158,1725759041863,-220.541715,0.0001499,2]
[337531159,1725759041873,-338.204902,0.0001499,2]
[337531160,1725759041883,-338.204902,0.0001499,2]
[337531161,1725759041893,-338.204902,0.0001499,2]
[337531162,1725759041902,-338.204902,0.0001499,2]
[337531163,1725759041912,-338.204902,0.0001499,2]
[337531164,1725759041921,-338.204902,0.0001499,2]
[337531165,1725759041930,-338.204902,0.0001499,2]
[337531166,1725759041940,-151.0,0.0001499,2]
[337531167,1725759041950,-151.0,0.0001499,2]
[337531168,1725759041961,-252.691984,0.0001499,2]
[337531169,1725759041970,-151.0,0.0001499,2]
[337531170,1725759041979,-173.631262,0.0001499,2]
[337531171,1725759041989,-151.0,0.0001499,2]
[337531172,1725759041999,-151.0,0.0001499,2]
[337531173,1725759042008,-151.0,0.0001499,2]
[337531174,1725759042018,-1153.324745,0.0001499,2]
[337531175,1725759042027,-463.549398,0.0001499,2]
[337531176,1725759042036,-1153.324745,0.0001499,2]
[337531177,1725759042047,-1153.324745,0.0001499,2]
[337531178,1725759042057,-1153.324745,0.0001499,2]
[337531179,1725759042067,-1153.324745,0.0001499,2]
[337531180,1725759042078,-201.890286,0.0001499,2]
[337531181,1725759042089,-201.890286,0.0001499,2]
[337531182,1725759042100,-201.890286,0.0001499,2]
[337531183,1725759042112,-201.890286,0.0001499,2]
[337531184,1725759042125,-201.890286,0.0001499,2]
[337531185,1725759042135,-201.890286,0.0001499,2]
[337531186,1725759042147,-201.890286,0.0001499,2]
[337531187,1725759042157,-201.890286,0.0001499,2]
[337531188,1725759042168,-201.890286,0.0001499,2]
[337531189,1725759042180,-201.890286,0.0001499,2]
[337531190,1725759042191,-14226.711458,0.0001499,2]
[337531191,1725759042200,-13628.4889846,0.0001499,2]
[337531192,1725759042211,-13030.2665113,0.0001499,2]
[337531193,1725759042222,-12432.044038,0.0001499,2]
[337531194,1725759042231,-151.0,0.0001499,2]
[337531195,1725759042242,-151.0,0.0001499,2]
[337531196,1725759042254,-151.0,0.0001499,2]
[337531197,1725759042265,-151.0,0.0001499,2]
[337531198,1725759042276,-151.0,0.0001499,2]
[337531199,1725759042286,-151.0,0.0001499,2]
[337531200,1725759042297,-151.0,0.0001499,2]
[337531201,1725759042307,-151.0,0.0001499,2]
[337531202,1725759042319,-151.0,0.0001499,2]
[337531203,1725759042331,-258.095899,0.0001499,2]
[337531204,1725759042342,-9837.5152417,0.0001499,2]
[337531205,1725759042352,-9423.8551547,0.0001499,2]
[337531206,1725759042363,-9010.1950677,0.0001499,2]
[337531207,1725759042375,-8596.5349807,0.0001499,2]
[337531208,1725759042384,-151.0,0.0001499,2]
[337531209,1725759042394,-151.0,0.0001499,2]
[337531210,1725759042404,-286.168498,0.0001499,2]
[337531211,1725759042413,-151.0,0.0001499,2]
[337531212,1725759042423,-169.767596,0.0001499,2]
[337531213,1725759042434,-151.0,0.0001499,2]
[337531214,1725759042444,-151.0,0.0001499,2]
[337531215,1725759042455,-252.757586,0.0001499,2]
[337531216,1725759042571,-37212.3550306,0.0001499,2]
[337531217,1725759042581,-35647.6036029,0.0001499,2]
[337531218,1725759042592,-34082.8521752,0.0001499,2]
[337531219,1725759042602,-32518.1007476,0.0001499,2]
[337531220,1725759042613,-151.0,0.0001499,2]
[337531221,1725759042623,-579.0266873,0.0001499,2]
[337531222,1725759042632,-555.6167258,0.0001499,2]
[337531223,1725759042642,-532.2067643,0.0001499,2]
[337531224,1725759042652,-508.7968027,0.0001499,2]
[337531225,1725759042662,-3078.396654,0.0001499,2]
[337531226,1725759042671,-2953.9375422,0.0001499,2]
[337531227,1725759042680,-2829.4784305,0.0001499,2]
[337531228,1725759042691,-2705.0193188,0.0001499,2]
[337531229,1725759042700,-151.0,0.0001499,2]
[337531230,1725759042712,-151.0,0.0001499,2]
[337531231,1725759042721,-151.0,0.0001499,2]
[337531232,1725759042731,-151.0,0.0001499,2]
[337531233,1725759042740,-44567.6832766,0.0001499,2]
[337531234,1725759042750,-42765.8185736,0.0001499,2]
[337531235,1725759042759,-40963.9538706,0.0001499,2]
[337531236,1725759042772,-39162.0891676,0.0001499,2]
[337531237,1725759042782,-151.0,0.0001499,2]
[337531238,1725759042791,-151.0,0.0001499,2]
[337531240,1725759042802,-151.0,0.0001499,2]
[337531241,1725759042812,-196.993533,0.0001499,2]
[337531242,1725759042822,-600.0,0.0001499,2]
[337531243,1725759042831,-600.0,0.0001499,2]
[337531244,1725759042843,-600.0,0.0001499,2]
[337531245,1725759042852,-600.0,0.0001499,2]
[337531246,1725759042862,-600.0,0.0001499,2]
[337531247,1725759042871,-600.0,0.0001499,2]
[337531248,1725759042881,-600.0,0.0001499,2]
[337531249,1725759042890,-600.0,0.0001499,2]
[337531250,1725759042899,-156.08,0.0001499,2]
[337531251,1725759042908,-156.08,0.0001499,2]
[337531252,1725759042917,-191.88611157,0.0001499,2]
[337531253,1725759042926,-500.0,0.00014998,2]
[337531254,1725759042936,-150.0,0.00014999,2]
[337531256,1725759042945,-150.0,0.00014999,7]
[337531257,1725759042954,-427780.55446058,0.00015,2]
[337531259,1725759042963,-1289313.26137659,0.00015,2]
[337531261,1725759043472,-42962.50804045,0.000149,2]
[337531262,1725759043481,-19961.28424668,0.00015,2]
[337531263,1725759043494,-501.57420602,0.00015,2]
[337531264,1725759043506,-1362.40688,0.00015,2]
[337531265,1725759044172,-151.0,0.000149,2]
[337531266,1725759044182,-151.0,0.0001498,2]
[337531267,1725759044191,-21618.33500199,0.00015,2]
[337531268,1725759044737,-308020.05985835,0.00015,2]
[337531276,1725759073830,187.65,0.0001499,120]
[337531277,1725759078409,158.77,0.00010959,2]
[337531278,1725759564936,533.090532,0.00011,2]
[337531279,1725759564966,216.909468,0.00011,2]
[337531280,1725759583037,158.44,0.00010959,2]
[337531286,1725759977020,500.0,0.00027,120]
[337531287,1725759987226,506.0,0.00027,120]
[337531288,1725760007107,40.370532,0.00011872,2]
[337531289,1725760007133,196.329468,0.00011872,2]
[337531290,1725760087557,271.48,0.00010959,2]
[337531299,1725760232105,-568.0784351,0.00013,2]
[337531300,1725760232285,-231.9215649,0.00013,2]
[337531302,1725760232297,-300.0,0.00013241,2]
[337531304,1725760232307,-625.824,0.00013242,2]
[337531305,1725760232317,-878.559,0.00013242,2]
[337531306,1725760232326,-449.569,0.00013242,2]
[337531307,1725760232336,-1926.429,0.00013242,2]
[337531308,1725760232345,-150.841,0.00013242,2]
[337531309,1725760232356,-1144.304,0.00013242,2]
[337531310,1725760232365,-414.33451965,0.00013242,2]
[337531349,1725760238689,-2151.51227173,0.00013242,2]
[337531351,1725760238700,-1619.17920862,0.00013242,2]
[337531353,1725760238710,-218.6255,0.00013322,2]
[337531355,1725760238720,-527.3601,0.00013323,2]
[337531357,1725760238731,-185.46,0.0001365,2]
[337531359,1725760238740,-152.42,0.00013706,2]
[337531361,1725760238750,-250.0,0.00013716,2]
[337531363,1725760238759,-420.15,0.00013759,2]
[337531365,1725760238769,-209.48,0.00013762,2]
[337531367,1725760238779,-150.0,0.00013863,2]
[337531369,1725760238788,-179.99,0.00013884,2]
[337531371,1725760238798,-150.99,0.00014,2]
[337531373,1725760238807,-150.0,0.00014,2]
[337531375,1725760238816,-579.85,0.00014018,2]
[337531377,1725760238826,-250.5,0.00014037,2]
[337531379,1725760238835,-152.42,0.00014093,2]
[337531381,1725760238845,-236.7,0.00014136,2]
[337531383,1725760238854,-152.42,0.00014479,2]
[337531385,1725760238863,-138.7006528,0.00014518,2]
[337531387,1725760238874,-281.2993472,0.00014518,2]
[337531389,1725760238883,-701.87246087,0.000148,2]
[337531391,1725760238892,-920.56911,0.0001485,2]
[337531393,1725760238902,-152.42,0.00014866,2]
[337531395,1725760238911,-150.0,0.000149,2]
[337531397,1725760238920,-150.0,0.000149,2]
[337531398,1725760238930,-387.37171083,0.000149,2]
[337531399,1725760238940,-10991.19817832,0.000149,2]
[337531400,1725760238949,-500.0,0.00014973,2]
[337531401,1725760238959,-2008.84338805,0.00014989,2]
[337531402,1725760238968,-497.29688592,0.0001499,3]
[337531403,1725760238978,-308.873,0.0001499,2]
[337531404,1725760238987,-180.714,0.0001499,2]
[337531405,1725760238996,-497.29688592,0.0001499,3]
[337531406,1725760239006,-345.6097746,0.00014999,2]
[337531407,1725760239016,-1158.7287801,0.00014999,2]
[337531408,1725760239027,-533.0,0.00015,2]
[337531409,1725760239036,-320835.41584544,0.00015,2]
[337531410,1725760239046,-80294.78622975,0.00015,2]
[337531411,1725760239106,-69051.66180831,0.00015,2]
[337531414,1725760240471,-138274.68005459,0.00015,2]
[337531415,1725760240643,-316497.0004651,0.00015,2]
[337531450,1725760243632,-263.52396733,0.00015,2]
[337531478,1725760691144,7000.0,0.00027,120]
[337531479,1725760850955,12000.0,0.00027,120]
[337531482,1725761197938,220.78,0.00011665,2]
[337531484,1725761377096,750.0,0.00011,2]
[337531491,1725761432354,-371.6925449,0.00013,2]
[337531492,1725761432366,-428.3074551,0.00013,2]
[337531493,1725761432375,-31.82816439,0.00013109,2]
[337531494,1725761432387,-5859.60083561,0.00013109,2]
[337531495,1725761432397,-290.109,0.00013109,2]
[337531496,1725761432407,-9307.0,0.00013109,2]
[337531497,1725761432417,-1148.255,0.00013109,2]
[337531498,1725761432426,-1085.269,0.00013109,2]
[337531499,1725761432436,-150.0,0.00013242,2]
[337531500,1725761432446,-150.0,0.00013488,2]
[337531501,1725761432455,-150.0,0.00013488,2]
[337531502,1725761432465,-150.0,0.00013488,2]
[337531503,1725761432475,-151.92811065,0.00013488,2]
[337531504,1725761432484,-469.76,0.00013539,2]
[337531505,1725761432494,-250.0,0.00013568,2]
[337531506,1725761432504,-150.0,0.00013654,2]
[337531507,1725761432514,-199.21,0.00013699,2]
[337531508,1725761432528,-152.42,0.00013699,2]
[337531509,1725761432537,-848.15,0.0001374,2]
[337531510,1725761432546,-200.4,0.00013783,2]
[337531511,1725761432555,-250.0,0.00013811,2]
[337531512,1725761432565,-150.0,0.00013821,2]
[337531513,1725761432575,-336.12,0.00013837,2]
[337531514,1725761432584,-220.78,0.00013929,2]
[337531515,1725761432595,-150.0,0.00013987,2]
[337531516,1725761432604,-150.0,0.00013987,2]
[337531517,1725761432614,-204.83738,0.00014,2]
[337531518,1725761432623,-663.88,0.00014065,2]
[337531519,1725761432633,-157.7,0.00014096,2]
[337531520,1725761432643,-150.0,0.00014154,2]
[337531521,1725761432652,-152.42,0.00014188,2]
[337531522,1725761432662,-150.0,0.00014237,2]
[337531523,1725761432672,-150.0,0.0001432,2]
[337531524,1725761432682,-150.0,0.00014487,2]
[337531525,1725761432692,-150.0,0.00014487,2]
[337531526,1725761432702,-150.0,0.00014653,2]
[337531527,1725761432713,-300.0,0.00014676,2]
[337531528,1725761432723,-152.42,0.00014677,2]
[337531529,1725761432733,-208.07261695,0.00014737,2]
[337531532,1725761432743,-252.486199,0.00014795,2]
[337531534,1725761432753,-150.0,0.00014796,2]
[337531536,1725761432763,-173.77,0.00014796,2]
[337531538,1725761432772,-796.12746383,0.000148,2]
[337531540,1725761432782,-150.0,0.0001482,2]
[337531541,1725761432791,-150.0,0.0001485,2]
[337531544,1725761432800,-158.90088,0.0001485,2]
[337531546,1725761432810,-150.0,0.00014896,2]
[337531548,1725761432820,-247.098,0.00014899,2]
[337531550,1725761432828,-180.71421241,0.00014899,2]
[337531551,1725761432838,-559.1015,0.000149,2]
[337531552,1725761432847,-1000.0,0.000149,2]
[337531553,1725761432857,-703.3573,0.000149,2]
[337531554,1725761432866,-10749.6504,0.000149,2]
[337531555,1725761432875,-500.0,0.000149,2]
[337531556,1725761432885,-2306.5691,0.000149,2]
[337531557,1725761432894,-11236.4874,0.000149,2]
[337531558,1725761432904,-353.5663,0.000149,2]
[337531559,1725761432914,-214.0923,0.000149,2]
[337531560,1725761432923,-3051.8071,0.000149,2]
[337531561,1725761432932,-1000.0,0.000149,2]
[337531562,1725761432941,-226.0,0.000149,2]
[337531563,1725761432951,-2967.257427,0.000149,2]
[337531564,1725761432960,-7500.0,0.000149,2]
[337531565,1725761432969,-359.0,0.000149,2]
[337531566,1725761432979,-332.56847801,0.000149,2]
[337531567,1725761432989,-3457.17631548,0.000149,2]
[337531568,1725761432999,-340.26185759,0.000149,2]
[337531569,1725761433009,-500.0,0.00014973,2]
[337531570,1725761433018,-269.85922585,0.00014986,2]
[337531571,1725761433029,-251.08565897,0.00014986,2]
[337531572,1725761433039,-156.75167292,0.00014986,2]
[337531573,1725761433050,-190.76438748,0.00014997,2]
[337531574,1725761433061,-239.03268909,0.00014999,2]
[337531575,1725761433071,-553.0,0.00015,2]
[337531576,1725761433080,-64430.75176086,0.00015,2]
[337531577,1725761433092,-935.99632994,0.00015,2]
[337531578,1725761433103,-2585.9584158,0.00015,2]
[337531579,1725761433156,-1000.5000036,0.00015,2]
[337531580,1725761433167,-451.11811569,0.00015,2]
[337531581,1725761433179,-773.31261003,0.00015,2]
[337531582,1725761433190,-42755.47949803,0.00015,2]
[337531583,1725761433202,-707.07731665,0.00015,2]
[337531584,1725761433212,-629.99914214,0.00015,2]
[337531585,1725761433224,-315.29707946,0.00015,2]
[337531586,1725761433234,-768.82318234,0.00015,2]
[337531589,1725761438735,-518.62206885,0.00015,2]
[337531590,1725761438747,-300.45999998,0.00015,2]
[337531591,1725761438773,-300.0,0.00015,2]
[337531592,1725761438851,-1275.15327242,0.00015,2]
[337531594,1725761438862,-4700.03040044,0.00015,2]
[337531598,1725761438886,-1404.2,0.00015,2]
[337531615,1725761440432,-16684.29469638,0.00015,2]
[337531616,1725761440652,-3274.40791948,0.00015,2]
[337531617,1725761440665,-656.60656736,0.00015,2]
[337531618,1725761440676,-565.48,0.00015,2]
[337531619,1725761440687,-126295.73690273,0.00015,2]
[337531620,1725761440699,-5966.59176036,0.00015,2]
[337531621,1725761440818,-87183.44403777,0.00015,2]
[337531622,1725761440829,-867160.16014823,0.00015,2]
[337531623,1725761440843,-1171.38519568,0.00015,2]
[337531624,1725761440855,-10557.47609607,0.00015,2]
[337531625,1725761440866,-2399.34523725,0.00015,2]
[337531626,1725761440880,-816.307956,0.00015,2]
[337531627,1725761440893,-685.67,0.00015,2]
[337531629,1725761441022,-6329.59494283,0.00015,2]
[337531630,1725761441040,-264.37412651,0.00015,2]
[337531631,1725761443908,-5939.26720196,0.00015,2]
[337531632,1725761443949,-364374.47929182,0.00015,2]
[337531633,1725761443962,-519.0,0.00015,2]
[337531634,1725761443975,-2830.67419839,0.00015,2]
[337531635,1725761443987,-21695.41141201,0.00015,2]
[337531636,1725761443999,-799.6436,0.00015,2]
[337531637,1725761444012,-12778.0653,0.00015,2]
[337531638,1725761444025,-3257.17425215,0.00015,2]
[337531639,1725761444036,-10088.48894132,0.00015,2]
[337531640,1725761444172,-266.362806,0.00015,2]
[337531641,1725761444183,-24273.64053912,0.00015,2]
[337531642,1725761444194,-977.39069926,0.00015,2]
[337531643,1725761444206,-927.77,0.00015,2]
[337531644,1725761444217,-253.00000018,0.00015,2]
[337531647,1725761446383,-37234.88536033,0.00015,2]
[337531648,1725761446568,-792.414,0.00015,2]
[337531649,1725761446580,-425.205,0.00015,2]
[337531650,1725761446616,-382.90169226,0.00015,2]
[337531651,1725761446628,-909.21367571,0.00015,2]
[337531652,1725761446639,-537.52494514,0.00015,2]
[337531653,1725761446735,-5664.2,0.00015,2]
[337531654,1725761459100,500.0,0.00027,120]
[337531655,1725761472935,500.0,0.00027,120]
[337531656,1725761805491,155.74,0.00010959,2]
[337531657,1725762083792,842.82096138,0.00027,120]
[337531658,1725762173178,4003.559,0.00027,120]
[337531659,1725762278177,214.22,0.00012014,2]
[337531660,1725762304540,158.44,0.00010959,2]
[337531683,1725762638574,-300.0,0.00013441,2]
[337531684,1725762638583,-259.12249875,0.00013442,2]
[337531685,1725762638923,-679.63550125,0.00013442,2]
[337531686,1725762638934,-815.684,0.00013442,2]
[337531687,1725762638943,-273.396,0.00013442,2]
[337531688,1725762638953,-562.329,0.00013442,2]
[337531689,1725762638964,-1909.762,0.00013442,2]
[337531690,1725762638973,-557.208,0.00013442,2]
[337531691,1725762638983,-220.76785385,0.00013442,2]
[337531692,1725762640602,-996.22306029,0.00013442,2]
[337531693,1725762640907,-2142.83108586,0.00013442,2]
[337531694,1725762640917,-1921.0,0.00013442,2]
[337531695,1725762640927,-4242.575,0.00013442,2]
[337531696,1725762640936,-1559.334,0.00013442,2]
[337531697,1725762640945,-624.177,0.00013442,2]
[337531698,1725762640955,-448.591,0.00013442,2]
[337531699,1725762640965,-1263.719,0.00013442,2]
[337531700,1725762640974,-231.379,0.00013783,2]
[337531701,1725762640984,-152.42,0.00013879,2]
[337531702,1725762640993,-157.7,0.00013917,2]
[337531703,1725762641002,-250.0,0.00013993,2]
[337531704,1725762641011,-150.0,0.00014,2]
[337531705,1725762641020,-1000.0,0.00014127,2]
[337531706,1725762641029,-214.22,0.00014278,2]
[337531707,1725762641038,-152.42,0.00014519,2]
[337531708,1725762641048,-189.2,0.00014694,2]
[337531709,1725762641057,-420.0,0.00014734,2]
[337531710,1725762641066,-152.67502348,0.00014834,2]
[337531711,1725762641075,-207.70801989,0.0001489,2]
[337531712,1725762641085,-207.70801989,0.00014891,2]
[337531713,1725762641094,-207.70801989,0.00014892,2]
[337531714,1725762641103,-207.70801989,0.00014893,2]
[337531715,1725762641112,-207.70801989,0.00014894,2]
[337531716,1725762641121,-207.70801989,0.00014896,2]
[337531717,1725762641130,-207.70801989,0.00014897,2]
[337531718,1725762641139,-207.70801989,0.00014898,2]